bitfinex-derivatives/quotes_SOLF0:USTF0_20250309
["timestamp","ask_amount","ask_price","bid_price","bid_amount"]
[1741504910525,32.88339326,139.06,139.04,0.05525343]
[1741504911127,0.05099326,139.06,139.04,0.05525343]
[1741504911626,0.05099326,139.06,139.05,7.1929]
[1741504913332,0.05099326,139.06,139.05,14.72022145]
[1741504914025,123.93267178,139.14,139.05,36.76732145]
[1741504914026,120.00377178,139.14,139.05,36.76732145]
[1741504914223,120.00377178,139.14,139.09,7.52732145]
[1741504914632,127.53109323,139.14,139.09,7.52732145]
[1741504915032,30.02591968,139.12,139.09,7.58014807]
[1741504915231,30.02591968,139.12,139.09,14.77084807]
[1741504917037,30.02591968,139.12,139.09,7.58014807]
[1741504917234,30.02591968,139.12,139.1,7.1903]
[1741504919132,30.02591968,139.12,139.11,7.1898]
[1741504920536,30.02591968,139.12,139.1,7.52732145]
[1741504920739,30.02591968,139.12,139.09,7.24362662]
[1741504921537,0.0468677,139.12,139.09,7.24362662]
[1741504922738,33.14732145,139.11,139.09,0.05282662]
[1741504923740,0.0468677,139.12,139.11,7.1898]
[1741504924640,25.62,139.16,139.1,7.52732145]
[1741504924839,14.71312145,139.19,139.12,7.52732145]
[1741504925039,25.62,139.18,139.12,7.52732145]
[1741504925440,7.52732145,139.19,139.16,7.1872]
[1741504925737,25.62,139.18,139.16,7.1872]
[1741504926040,25.62,139.17,139.16,7.24237761]
[1741504926539,25.62,139.18,139.16,7.24237761]
[1741504927138,7.57747092,139.19,139.16,0.05517761]
[1741504927436,25.62,139.18,139.17,7.1863]
[1741504927834,25.62,139.18,139.16,7.24227761]
[1741504928031,0.05014947,139.19,139.16,0.05517761]
[1741504928238,25.67014947,139.19,139.16,0.05517761]
[1741504928431,32.85634947,139.19,139.16,0.05517761]
[1741504929141,25.67014947,139.19,139.16,7.24227761]
[1741504929536,0.05014947,139.19,139.16,7.24227761]
[1741504929736,0.05014947,139.19,139.16,7.24207761]
[1741504930034,0.05014947,139.19,139.16,0.05517761]
[1741504931742,0.05014947,139.19,139.18,7.1862]
[1741504932240,0.05014947,139.19,139.16,0.05517761]
[1741504932438,25.62,139.24,139.18,11.71379629]
[1741504932640,25.62,139.24,139.16,11.7689739]
[1741504932939,25.62,139.24,139.16,11.71379629]
[1741504933237,32.8035,139.24,139.16,11.71379629]
[1741504933439,25.62,139.24,139.16,11.71379629]
[1741504933643,0.03618697,139.21,139.2,7.1852]
[1741504933836,0.03618697,139.21,139.19,0.05340719]
[1741504935540,25.63618697,139.21,139.19,0.05340719]
[1741504936744,32.82088697,139.21,139.19,0.05340719]
[1741504938642,25.63618697,139.21,139.19,0.05340719]
[1741504939040,0.03618697,139.21,139.19,0.05340719]
[1741504939241,7.183,139.25,139.2,7.1852]
[1741504939448,32.803,139.25,139.2,7.1852]
[1741504939651,25.62,139.25,139.19,0.05340719]
[1741504939947,7.1836,139.23,139.19,7.23890719]
[1741504940545,25.62,139.25,139.19,0.05340719]
[1741504941445,11.71379629,139.24,139.19,0.05340719]
[1741504941842,7.1849,139.21,139.19,0.05340719]
[1741504942356,25.62,139.22,139.19,0.05340719]
[1741504943153,7.185,139.21,139.19,0.05340719]
[1741504943951,7.1852,139.2,139.19,0.05340719]
[1741504945451,25.62,139.22,139.19,0.05340719]
[1741504945651,32.8043,139.22,139.19,0.05340719]
[1741504946956,32.8043,139.22,139.19,7.23900719]
[1741504948260,248.99379629,139.28,139.19,0.05340719]
[1741504948456,25.6,139.26,139.19,0.05340719]
[1741504949358,7.4916514,139.25,139.2,7.4916514]
[1741504949560,7.4916514,139.25,139.21,7.1843]
[1741504949853,7.4916514,139.25,139.2,7.4916514]
[1741504950552,25.6,139.24,139.2,7.4916514]
[1741504951660,32.7833,139.24,139.2,7.4916514]
[1741504952057,25.6,139.24,139.2,7.4916514]
[1741504952461,25.6,139.24,139.19,0.05340719]
[1741504952662,7.1841,139.22,139.19,0.05340719]
[1741504953758,7.1852,139.2,139.19,0.05340719]
[1741504954667,7.1846,139.22,139.19,0.05340719]
[1741504954860,33.0916514,139.23,139.19,0.05340719]
[1741504955165,7.4916514,139.21,139.19,0.05340719]
[1741504955364,25.6,139.2,139.19,0.05340719]
[1741504956470,25.6,139.2,139.19,7.23910719]
[1741504956856,25.6,139.2,139.19,0.05340719]
[1741504957860,25.6,139.2,139.19,7.23910719]
[1741504959365,25.6,139.2,139.19,0.05340719]
[1741504961068,25.6,139.2,139.19,7.23910719]
[1741504962364,25.6,139.2,139.19,0.05340719]
[1741504963462,7.1842,139.22,139.19,7.23910719]
[1741504963666,25.64,139.23,139.19,7.23910719]
[1741504964067,25.64,139.23,139.19,0.05340719]
[1741504964264,25.64,139.23,139.2,7.185]
[1741504967173,25.64,139.23,139.19,7.23890719]
[1741504967570,25.64,139.23,139.19,0.05340719]
[1741504967770,25.64,139.23,139.2,7.185]
[1741504969972,25.64,139.23,139.21,7.1846]
[1741504971073,25.64,139.23,139.2,7.1849]
[1741504971974,25.64,139.23,139.21,7.1845]
[1741504972470,25.64,139.23,139.19,0.05340719]
[1741504972775,25.6,139.22,139.19,0.05340719]
[1741504973275,27.5816,139.24,139.23,7.1836]
[1741504977478,27.5816,139.24,139.22,7.23317242]
[1741504977684,25.6,139.24,139.22,7.23317242]
[1741504980478,25.6,139.24,139.23,7.1836]
[1741504981481,3.9359,139.27,139.22,0.04937242]
[1741504981778,25.6,139.26,139.22,0.04937242]
[1741504982080,25.6,139.26,139.23,7.1833]
[1741504982581,32.7821,139.26,139.23,7.1833]
[1741504982781,32.7821,139.26,139.24,7.1831]
[1741504982979,25.6,139.26,139.24,7.1831]
[1741504983382,25.6,139.26,139.25,7.1826]
[1741504983675,25.6,139.26,139.22,0.04937242]
[1741504984477,7.1802,139.3,139.23,7.49178935]
[1741504984781,7.49178935,139.29,139.25,7.49178935]
[1741504984974,14.67238935,139.29,139.25,0.05148988]
[1741504985181,25.6,139.28,139.25,0.05148988]
[1741504985884,25.6,139.28,139.26,7.182]
[1741504986177,25.6,139.28,139.25,0.05148988]
[1741504986884,25.6,139.28,139.25,7.23388988]
[1741504987083,25.6,139.28,139.25,0.05148988]
[1741504987475,25.6,139.28,139.25,7.23368988]
[1741504987679,25.6,139.28,139.25,0.05148988]
[1741504988984,25.6,139.32,139.25,7.54327923]
[1741504989180,14.67138935,139.31,139.25,7.54327923]
[1741504989387,33.09178935,139.31,139.25,7.54327923]
[1741504989885,7.1804,139.3,139.26,7.1817]
[1741504991189,40.27168935,139.31,139.27,7.1811]
[1741504991489,33.09178935,139.31,139.27,7.1811]
[1741504992487,7.1801,139.3,139.27,7.1811]
[1741504993088,33.09178935,139.31,139.27,7.1811]
[1741504993288,40.27158935,139.31,139.27,7.1811]
[1741504993987,33.09178935,139.31,139.25,7.54327923]
[1741504994187,25.6,139.31,139.29,7.1805]
[1741504994584,25.6,139.31,139.29,7.23215679]
[1741504995187,37.15595198,139.37,139.33,7.1784]
[1741504995386,37.15595198,139.37,139.31,7.49178935]
[1741504995387,29.97905198,139.37,139.31,7.49178935]
[1741504995694,29.97905198,139.37,139.34,0.04849061]
[1741504995991,37.15575198,139.37,139.34,0.04849061]
[1741504996186,29.97905198,139.37,139.34,0.04849061]
[1741504996392,7.49178935,139.36,139.34,0.04849061]
[1741504996585,25.68,139.35,139.34,0.04849061]
[1741504997691,32.8574,139.35,139.34,0.04849061]
[1741504998496,25.68,139.35,139.34,0.04849061]
[1741504999393,7.49178935,139.36,139.34,0.04849061]
[1741504999592,156.14281263,139.43,139.35,7.49178935]
[1741504999792,156.14281263,139.43,139.39,7.49178935]
[1741505001395,163.63460198,139.43,139.39,7.49178935]
[1741505002395,189.67460198,139.43,139.39,7.49178935]
[1741505002598,33.53178935,139.43,139.39,7.49178935]
[1741505003898,33.53178935,139.43,139.39,14.66698935]
[1741505004590,26.04,139.43,139.39,7.49178935]
[1741505005893,26.04,139.43,139.39,14.66678935]
[1741505006093,26.04,139.43,139.39,7.49178935]
[1741505006400,33.2136,139.43,139.39,7.49178935]
[1741505007300,33.53178935,139.43,139.39,7.49178935]
[1741505007600,7.1741,139.42,139.39,7.49178935]
[1741505010599,7.49178935,139.45,139.4,7.1746]
[1741505010902,7.49178935,139.45,139.39,7.49178935]
[1741505011097,7.49178935,139.45,139.41,0.04643217]
[1741505011496,7.1733,139.43,139.41,0.04643217]
[1741505012298,7.1738,139.42,139.41,0.04643217]
[1741505012603,33.1338,139.42,139.41,0.04643217]
[1741505013696,33.47178935,139.45,139.41,0.04643217]
[1741505014003,7.1728,139.44,139.41,0.04643217]
[1741505014206,33.47178935,139.45,139.41,0.04643217]
[1741505014704,7.1729,139.44,139.41,0.04643217]
[1741505015092,7.49178935,139.43,139.41,0.04643217]
[1741505015300,25.98,139.42,139.41,0.04643217]
[1741505015710,33.1538,139.42,139.41,0.04643217]
[1741505016209,25.98,139.42,139.41,0.04643217]
[1741505016409,33.47178935,139.45,139.41,7.22073217]
[1741505016708,33.47178935,139.45,139.41,0.04643217]
[1741505016908,14.66538935,139.43,139.41,0.04643217]
[1741505018605,7.49178935,139.43,139.41,0.04643217]
[1741505018810,7.49178935,139.43,139.42,7.1738]
[1741505019012,7.49178935,139.43,139.41,0.04643217]
[1741505019810,40.64428935,139.45,139.41,0.04643217]
[1741505020506,40.64428935,139.45,139.42,7.1738]
[1741505020706,40.64428935,139.45,139.41,0.04643217]
[1741505021007,7.1728,139.44,139.41,7.22043217]
[1741505021914,7.49178935,139.42,139.41,0.04643217]
[1741505022108,33.47178935,139.42,139.34,7.49178935]
[1741505022307,33.47178935,139.42,139.33,7.49178935]
[1741505022308,7.49178935,139.37,139.33,7.49178935]
[1741505022709,7.49178935,139.37,139.32,7.1789]
[1741505023104,7.49178935,139.37,139.31,9.50038935]
[1741505023105,7.177,139.36,139.31,9.50038935]
[1741505023310,7.53691432,139.36,139.33,0.05145251]
[1741505023514,33.53691432,139.36,139.33,0.05145251]
[1741505025317,14.66968935,139.34,139.33,0.05145251]
[1741505026719,7.49178935,139.34,139.27,7.49178935]
[1741505026914,7.49178935,139.31,139.27,7.49178935]
[1741505027214,7.49178935,139.31,139.25,9.53348935]
[1741505027611,7.49178935,139.29,139.25,7.49178935]
[1741505027812,7.54453714,139.29,139.27,0.05019234]
[1741505028315,14.72523714,139.29,139.27,0.05019234]
[1741505029213,7.23344779,139.29,139.27,0.05019234]
[1741505030011,0.05274779,139.29,139.27,0.05019234]
[1741505032016,0.05274779,139.29,139.27,11.7467493]
[1741505032710,0.05274779,139.29,139.28,7.181]
[1741505034821,26.04,139.34,139.32,7.1786]
[1741505035124,7.1765,139.37,139.29,11.69655696]
[1741505035326,26.02,139.36,139.29,11.69655696]
[1741505035821,26.02,139.36,139.33,7.1783]
[1741505036019,0.04382969,139.34,139.33,7.1783]
[1741505037315,0.04382969,139.34,139.31,7.23443568]
[1741505037515,0.04382969,139.34,139.31,0.05503568]
[1741505037924,0.04382969,139.34,139.32,7.1789]
[1741505038918,0.04382969,139.34,139.31,0.05503568]
[1741505039221,0.04382969,139.34,139.31,7.23433568]
[1741505039824,0.04382969,139.34,139.31,0.05503568]
[1741505040020,7.1785,139.33,139.31,0.05503568]
[1741505040422,26.04382969,139.34,139.31,0.05503568]
[1741505041018,33.22182969,139.34,139.31,7.23433568]
[1741505041327,26.04382969,139.34,139.31,0.05503568]
[1741505041628,7.179,139.32,139.31,0.05503568]
[1741505042528,37.74038665,139.34,139.31,0.05503568]
[1741505042827,7.1786,139.33,139.31,0.05503568]
[1741505043727,7.179,139.32,139.31,0.05503568]
[1741505048831,7.1788,139.33,139.31,0.05503568]
[1741505049332,7.179,139.32,139.31,0.05503568]
[1741505049832,26.04382969,139.34,139.31,0.05503568]
[1741505050027,7.1786,139.33,139.31,0.05503568]
[1741505050430,26.04382969,139.34,139.31,7.23443568]
[1741505050628,26.04382969,139.34,139.31,0.05503568]
[1741505050828,0.04382969,139.34,139.31,0.05503568]
[1741505051131,0.04382969,139.34,139.31,7.23433568]
[1741505051331,0.04382969,139.34,139.31,0.05503568]
[1741505051833,0.04382969,139.34,139.32,14.65992764]
[1741505052234,0.04382969,139.34,139.32,7.48092764]
[1741505052933,0.04382969,139.34,139.32,14.65952764]
[1741505053134,0.04382969,139.34,139.32,7.48092764]
[1741505053435,7.22172969,139.34,139.31,0.05503568]
[1741505053623,0.04382969,139.34,139.31,0.05503568]
[1741505054535,7.179,139.32,139.31,0.05503568]
[1741505056032,33.199,139.32,139.31,0.05503568]
[1741505060437,0.04382969,139.34,139.25,7.48092764]
[1741505060636,26.08,139.36,139.31,7.48092764]
[1741505060936,26.08,139.36,139.32,7.1789]
[1741505061435,26.16,139.36,139.34,7.1779]
[1741505061742,0.05234695,139.35,139.34,7.1779]
[1741505061941,0.05234695,139.35,139.33,7.53608442]
[1741505062136,0.05234695,139.35,139.33,0.05515678]
[1741505063639,7.53327459,139.35,139.33,0.05515678]
[1741505065139,0.05234695,139.35,139.33,0.05515678]
[1741505066734,7.53327459,139.35,139.33,0.05515678]
[1741505067038,0.05234695,139.35,139.33,0.05515678]
[1741505067447,26.17234695,139.35,139.33,7.53608442]
[1741505068041,26.17234695,139.35,139.33,0.05515678]
[1741505069548,7.1779,139.34,139.33,0.05515678]
[1741505072941,33.65327459,139.35,139.27,7.48092764]
[1741505073143,7.1802,139.3,139.27,7.48092764]
[1741505073341,33.2802,139.3,139.27,7.48092764]
[1741505073550,26.1,139.3,139.27,7.48092764]
[1741505074247,26.14702184,139.3,139.27,7.53552499]
[1741505076151,7.1805,139.29,139.27,0.05459735]
[1741505076551,33.62794948,139.3,139.27,0.05459735]
[1741505076753,26.14702184,139.3,139.27,7.53552499]
[1741505076953,26.14702184,139.3,139.28,7.48092764]
[1741505077153,0.04702184,139.3,139.28,7.48092764]
[1741505077351,0.04702184,139.3,139.28,14.66152764]
[1741505078050,0.04702184,139.3,139.29,7.1805]
[1741505078652,0.04702184,139.3,139.28,14.66182764]
[1741505080249,0.04702184,139.3,139.28,7.48092764]
[1741505080455,0.04702184,139.3,139.29,7.1805]
[1741505080654,0.04702184,139.3,139.29,14.66142764]
[1741505080854,7.48092764,139.35,139.32,7.1788]
[1741505081152,26.04,139.35,139.32,7.1788]
[1741505082054,26.09144099,139.35,139.32,0.05382873]
[1741505082851,26.09144099,139.35,139.32,7.23262873]
[1741505084757,0.05144099,139.35,139.34,7.1779]
[1741505086354,7.48092764,139.39,139.33,11.35402764]
[1741505086355,26.0,139.39,139.38,7.1759]
[1741505086754,7.48092764,139.4,139.38,7.1759]
[1741505086755,33.52092764,139.4,139.38,7.1759]
[1741505086955,7.48092764,139.41,139.36,7.48092764]
[1741505087153,29.97905198,139.42,139.38,7.48092764]
[1741505087357,0.04548081,139.39,139.38,7.48092764]
[1741505088457,0.04548081,139.39,139.38,14.65682764]
[1741505088861,29.97905198,139.42,139.38,7.48092764]
[1741505089162,29.97905198,139.42,139.4,7.48092764]
[1741505089765,29.97905198,139.42,139.39,7.48092764]
[1741505090065,29.97905198,139.42,139.39,7.53171885]
[1741505090267,29.97905198,139.42,139.39,0.05079121]
[1741505090562,55.99905198,139.42,139.39,0.05079121]
[1741505090758,26.02,139.42,139.39,0.05079121]
[1741505091959,26.02,139.42,139.39,7.22569121]
[1741505092763,33.1939,139.42,139.39,0.05079121]
[1741505093066,26.02,139.42,139.39,0.05079121]
[1741505093564,7.1748,139.4,139.39,0.05079121]
[1741505094058,7.1745,139.41,139.39,0.05079121]
[1741505094266,26.02,139.42,139.39,0.05079121]
[1741505094563,33.1942,139.42,139.39,0.05079121]
[1741505097159,26.02,139.42,139.39,0.05079121]
[1741505097763,11.6740886,139.41,139.39,0.05079121]
[1741505097967,7.1748,139.4,139.39,0.05079121]
[1741505098264,11.6740886,139.41,139.39,0.05079121]
[1741505100355,7.1748,139.4,139.39,0.05079121]
[1741505100555,11.6740886,139.41,139.39,0.05079121]
[1741505100755,17.4559886,139.41,139.39,0.05079121]
[1741505102170,11.6740886,139.43,139.39,0.05079121]
[1741505102468,25.92,139.42,139.39,0.05079121]
[1741505103066,25.92,139.41,139.39,0.05079121]
[1741505104269,37.5940886,139.41,139.39,0.05079121]
[1741505104473,7.1748,139.4,139.39,0.05079121]
[1741505107562,7.1769,139.37,139.31,1.8865]
[1741505107768,25.92,139.37,139.3,37.6140886]
[1741505108775,0.04743391,139.35,139.32,0.05026584]
[1741505109175,0.04743391,139.35,139.33,7.178]
[1741505109374,0.04743391,139.35,139.32,0.05026584]
[1741505110474,0.04743391,139.35,139.32,7.22916584]
[1741505111570,0.04743391,139.35,139.32,0.05026584]
[1741505111775,25.9,139.34,139.32,0.05026584]
[1741505111971,33.0782,139.34,139.32,0.05026584]
[1741505112573,25.9,139.34,139.32,0.05026584]
[1741505113278,14.66065404,139.33,139.32,0.05026584]
[1741505113472,7.48225404,139.33,139.32,0.05026584]
[1741505114074,25.9,139.34,139.32,0.05026584]
[1741505114477,33.0783,139.34,139.32,0.05026584]
[1741505114973,25.9,139.34,139.32,0.05026584]
[1741505115378,33.38225404,139.34,139.32,0.05026584]
[1741505117378,40.56025404,139.34,139.32,0.05026584]
[1741505117585,33.38225404,139.34,139.32,0.05026584]
[1741505120181,0.04743391,139.35,139.34,7.1779]
[1741505121982,3.391e-05,139.35,139.34,7.1779]
[1741505122186,33.36225404,139.41,139.39,7.1753]
[1741505123382,33.36225404,139.41,139.39,0.04634544]
[1741505124879,14.65705404,139.4,139.39,0.04634544]
[1741505125588,7.1772,139.36,139.29,1.9774]
[1741505125889,40.51945404,139.36,139.31,7.48225404]
[1741505126290,14.65995404,139.35,139.29,1.9774]
[1741505126589,0.04841111,139.33,139.31,0.04849117]
[1741505127987,0.04841111,139.33,139.31,7.22749117]
[1741505129085,0.04841111,139.33,139.32,7.179]
[1741505129985,0.04841111,139.33,139.31,7.22779117]
[1741505130490,0.04841111,139.33,139.31,0.04849117]
[1741505130686,0.04841111,139.33,139.31,7.22789117]
[1741505131689,0.04841111,139.33,139.32,7.179]
[1741505132591,7.179,139.32,139.31,0.04849117]
[1741505133297,33.16701111,139.33,139.31,0.04849117]
[1741505133495,25.98841111,139.33,139.31,0.04849117]
[1741505134494,25.98841111,139.33,139.31,7.22769117]
[1741505136594,25.98841111,139.33,139.31,0.04849117]
[1741505137296,25.98841111,139.33,139.31,7.22799117]
[1741505137999,41.66624514,139.41,139.32,37.60719316]
[1741505138495,11.68719316,139.39,139.32,25.92]
[1741505138894,37.62719316,139.41,139.32,37.60719316]
[1741505139095,44.80179316,139.41,139.36,7.1765]
[1741505139397,11.68719316,139.41,139.34,0.05229895]
[1741505140292,11.68719316,139.41,139.37,7.176]
[1741505140692,11.68719316,139.41,139.37,7.22278873]
[1741505140898,33.88715198,139.42,139.37,0.04678873]
[1741505141097,31.96475198,139.42,139.37,0.04678873]
[1741505141798,1.9857,139.42,139.37,0.04678873]
[1741505142400,11.68719316,139.44,139.37,0.04678873]
[1741505142600,67.60624514,139.45,139.37,0.04678873]
[1741505142800,29.97905198,139.45,139.38,25.96]
[1741505143203,41.66624514,139.45,139.38,25.96]
[1741505143502,41.66624514,139.45,139.4,7.22568484]
[1741505143894,41.66624514,139.45,139.4,0.05098484]
[1741505144100,7.1734,139.43,139.4,0.05098484]
[1741505145704,7.173,139.44,139.4,0.05098484]
[1741505145906,25.94,139.47,139.4,0.05098484]
[1741505146204,11.68719316,139.45,139.4,0.05098484]
[1741505147301,7.47299125,139.42,139.4,0.05098484]
[1741505147703,7.47299125,139.42,139.4,7.22578484]
[1741505148906,7.47299125,139.42,139.4,0.05098484]
[1741505150105,7.47299125,139.42,139.4,7.22578484]
[1741505152310,7.47299125,139.42,139.4,0.05098484]
[1741505154617,7.47299125,139.42,139.4,7.22548484]
[1741505154816,7.47299125,139.43,139.4,0.05098484]
[1741505155313,7.47299125,139.41,139.4,0.05098484]
[1741505155518,33.35299125,139.41,139.4,0.05098484]
[1741505155816,40.52759125,139.41,139.37,7.1761]
[1741505156009,33.35299125,139.41,139.34,9.51239125]
[1741505156206,40.52749125,139.41,139.37,7.1761]
[1741505156608,40.52749125,139.41,139.34,9.51239125]
[1741505156810,0.05299269,139.4,139.38,7.22942992]
[1741505157521,0.05299269,139.4,139.39,7.1754]
[1741505158220,0.05299269,139.4,139.38,7.22952992]
[1741505160119,0.05299269,139.4,139.38,0.05382992]
[1741505161329,0.05299269,139.4,139.39,7.1754]
[1741505161625,0.05299269,139.4,139.38,0.05382992]
[1741505162729,0.05299269,139.4,139.38,7.22942992]
[1741505162924,0.05299269,139.4,139.38,0.05382992]
[1741505164333,0.05299269,139.4,139.39,7.1754]
[1741505166330,0.05299269,139.4,139.38,0.05382992]
[1741505166531,0.05299269,139.4,139.38,7.52682117]
[1741505167130,25.88,139.44,139.38,7.52682117]
[1741505167329,25.88,139.44,139.4,7.47299125]
[1741505167832,25.88,139.44,139.41,7.174]
[1741505168031,25.88,139.44,139.4,7.47299125]
[1741505168231,25.88,139.44,139.42,7.1738]
[1741505169936,25.88,139.44,139.41,7.22226217]
[1741505170138,33.0528,139.44,139.41,7.22226217]
[1741505170433,7.1728,139.44,139.41,7.22226217]
[1741505170631,33.0128,139.44,139.41,7.22226217]
[1741505170832,25.84,139.44,139.41,7.22226217]
[1741505171535,33.0128,139.44,139.41,7.22226217]
[1741505171937,25.84,139.44,139.41,7.22226217]
[1741505173341,33.0129,139.44,139.41,7.22226217]
[1741505173540,7.47299125,139.43,139.41,7.22226217]
[1741505175341,33.35299125,139.47,139.41,7.52125342]
[1741505175543,33.35299125,139.47,139.43,7.47299125]
[1741505175741,33.35299125,139.47,139.43,14.64589125]
[1741505175938,33.35299125,139.47,139.43,7.47299125]
[1741505176541,33.35299125,139.47,139.41,7.52125342]
[1741505176838,33.35299125,139.47,139.43,7.173]
[1741505177345,7.1719,139.46,139.41,7.52125342]
[1741505177537,7.1719,139.46,139.42,7.1736]
[1741505177842,33.0519,139.46,139.42,7.1736]
[1741505178037,7.1728,139.44,139.41,0.04826217]
[1741505179144,14.64559125,139.45,139.41,7.22236217]
[1741505181237,7.47299125,139.45,139.42,7.1738]
[1741505181643,7.47299125,139.45,139.41,0.04826217]
[1741505182545,7.1728,139.44,139.41,7.22256217]
[1741505183637,7.47299125,139.45,139.41,0.04826217]
[1741505184443,7.1736,139.43,139.41,0.04826217]
[1741505185245,7.47299125,139.45,139.41,0.04826217]
[1741505185548,7.1729,139.44,139.41,0.04826217]
[1741505185848,7.47299125,139.45,139.41,0.04826217]
[1741505186548,7.47299125,139.45,139.41,7.22246217]
[1741505186742,7.1731,139.44,139.41,7.22246217]
[1741505187242,7.1731,139.44,139.41,0.04826217]
[1741505187442,33.27299125,139.43,139.41,0.04826217]
[1741505187643,33.27299125,139.43,139.37,7.47299125]
[1741505187842,33.27299125,139.43,139.41,0.0453095]
[1741505188040,33.27299125,139.43,139.35,9.38009125]
[1741505188244,7.47299125,139.39,139.35,7.47299125]
[1741505189150,7.47299125,139.39,139.36,7.1768]
[1741505189451,0.04828317,139.38,139.36,0.05147658]
[1741505190550,0.04828317,139.38,139.36,7.22837658]
[1741505190948,0.04828317,139.38,139.36,0.05147658]
[1741505191654,0.04828317,139.38,139.36,7.22827658]
[1741505192852,0.04828317,139.38,139.36,0.05147658]
[1741505193052,0.04828317,139.38,139.37,7.1764]
[1741505193355,0.04828317,139.38,139.36,0.05147658]
[1741505194161,0.04828317,139.38,139.37,7.1764]
[1741505194457,0.04828317,139.38,139.37,14.64939125]
[1741505195656,8.317e-05,139.38,139.37,14.64939125]
[1741505207471,8.317e-05,139.38,139.37,16.60439125]
[1741505207973,7.47299125,139.45,139.44,7.1728]
[1741505208369,7.47299125,139.45,139.41,7.47299125]
[1741505208572,7.47299125,139.45,139.43,7.1732]
[1741505208878,7.47299125,139.45,139.41,7.47299125]
[1741505209077,7.47299125,139.45,139.42,0.05499207]
[1741505210376,7.47299125,139.45,139.42,7.22879207]
[1741505210979,7.47299125,139.45,139.42,0.05499207]
[1741505212475,7.1728,139.44,139.42,0.05499207]
[1741505212971,1.9482,139.47,139.43,7.47299125]
[1741505213178,1.9482,139.47,139.42,0.05499207]
[1741505213374,7.47299125,139.46,139.42,0.05499207]
[1741505213680,14.64519125,139.46,139.42,0.05499207]
[1741505213875,7.47299125,139.46,139.42,0.05499207]
[1741505214277,7.1731,139.44,139.42,0.05499207]
[1741505214483,25.66,139.45,139.42,0.05499207]
[1741505214675,7.47299125,139.44,139.42,0.05499207]
[1741505214878,9.47309125,139.44,139.42,0.05499207]
[1741505215175,9.47309125,139.44,139.37,14.64919125]
[1741505215376,9.47309125,139.44,139.37,7.47299125]
[1741505215584,7.1741,139.42,139.38,7.1756]
[1741505215787,25.7,139.42,139.38,7.1756]
[1741505216283,0.04963451,139.41,139.39,7.22189596]
[1741505217590,0.04963451,139.41,139.39,0.04689596]
[1741505217785,0.04963451,139.41,139.4,7.1748]
[1741505234400,0.04963451,139.41,139.4,14.64779125]
[1741505236406,0.04963451,139.41,139.39,0.04689596]
[1741505237006,7.22423451,139.41,139.39,0.04689596]
[1741505237601,0.04963451,139.41,139.39,0.04689596]
[1741505238609,0.04963451,139.41,139.39,7.22209596]
[1741505238813,0.04963451,139.41,139.39,0.04689596]
[1741505239510,0.04963451,139.41,139.4,14.64779125]
[1741505244115,3.451e-05,139.41,139.4,14.64779125]
[1741505263127,13.34099125,139.48,139.4,7.47299125]
[1741505263325,36.91249125,139.48,139.44,7.47299125]
[1741505263926,36.91249125,139.48,139.45,7.1718]
[1741505264228,36.91249125,139.48,139.45,7.21999286]
[1741505264423,36.91249125,139.48,139.45,0.04819286]
[1741505264625,7.1704,139.49,139.46,7.1716]
[1741505264827,25.6,139.48,139.46,7.1716]
[1741505265231,25.6,139.49,139.46,7.1716]
[1741505267629,25.6,139.49,139.45,7.22029286]
[1741505268031,32.7703,139.49,139.45,7.22029286]
[1741505269131,32.7703,139.49,139.45,0.04819286]
[1741505269332,32.7703,139.49,139.46,7.1717]
[1741505269628,25.6,139.49,139.46,7.1717]
[1741505270332,32.7705,139.49,139.46,7.1717]
[1741505271837,32.7705,139.49,139.45,0.04819286]
[1741505272129,25.6,139.49,139.45,7.22029286]
[1741505272432,7.1709,139.48,139.45,7.22029286]
[1741505272631,25.6,139.49,139.45,7.22029286]
[1741505274433,7.171,139.48,139.45,0.04819286]
[1741505274730,14.64399125,139.48,139.45,0.04819286]
[1741505275127,14.64479125,139.46,139.45,0.04819286]
[1741505275432,40.24479125,139.46,139.45,0.04819286]
[1741505276039,7.1723,139.45,139.42,7.1734]
[1741505277135,7.1723,139.45,139.42,7.22390803]
[1741505277733,40.24479125,139.46,139.43,7.1731]
[1741505277924,32.7718,139.46,139.43,7.1731]
[1741505278130,25.6,139.46,139.43,7.1731]
[1741505278937,32.7718,139.46,139.43,7.1731]
[1741505280132,32.7718,139.46,139.42,7.22410803]
[1741505280335,32.7718,139.46,139.42,0.05050803]
[1741505281637,32.7718,139.46,139.43,7.1732]
[1741505282638,32.7718,139.46,139.42,7.22410803]